[Event "Titled Tuesday Blitz December 06 Late 2022"]
[White "Kollars, Dmitrij"]
[Black "Rakhmatullaev, Almas"]
[WhiteFideId "12909572"]
[BlackFideId "14205793"]
[WhiteElo "2584"]
[BlackElo "2221"]
[Result "1-0"]
[Round "03"]
[TimeControl "180+1"]
[Date "2022.12.06"]
[WhiteClock "0:00:16"]
[BlackClock "0:00:02"]

1. c4 {[%clk 0:03:00]}  Nf6 {[%clk 0:02:53]} 2. Nc3 {[%clk 0:03:00]}  g6 {[%clk 0:02:54]} 3. d4 {[%clk 0:02:55]}  Bg7 {[%clk 0:02:53]} 4. Bg5 {[%clk 0:02:54]}  O-O {[%clk 0:02:53]} 5. e3 {[%clk 0:02:54]}  d6 {[%clk 0:02:53]} 6. Nf3 {[%clk 0:02:54]}  Nbd7 {[%clk 0:02:53]} 7. Bd3 {[%clk 0:02:54]}  c6 {[%clk 0:02:53]} 8. O-O {[%clk 0:02:53]}  e5 {[%clk 0:02:54]} 9. Qc2 {[%clk 0:02:50]}  Qe7 {[%clk 0:02:52]} 10. Nd2 {[%clk 0:02:40]}  h6 {[%clk 0:02:50]} 11. Bh4 {[%clk 0:02:40]}  g5 {[%clk 0:02:41]} 12. Bg3 {[%clk 0:02:40]}  Nh5 {[%clk 0:02:42]} 13. d5 {[%clk 0:02:30]}  Nc5 {[%clk 0:02:38]} 14. Bh7+ {[%clk 0:02:25]}  Kh8 {[%clk 0:02:37]} 15. Bf5 {[%clk 0:02:26]}  Nxg3 {[%clk 0:02:28]} 16. hxg3 {[%clk 0:02:27]}  Nd7 {[%clk 0:02:24]} 17. g4 {[%clk 0:02:25]}  Nf6 {[%clk 0:02:20]} 18. Bxc8 {[%clk 0:02:21]}  Raxc8 {[%clk 0:02:20]} 19. Qf5 {[%clk 0:02:18]}  cxd5 {[%clk 0:02:11]} 20. Nxd5 {[%clk 0:02:19]}  Nxd5 {[%clk 0:02:10]} 21. cxd5 {[%clk 0:02:20]}  Rc5 {[%clk 0:02:09]} 22. Qd3 {[%clk 0:01:57]}  Rfc8 {[%clk 0:02:03]} 23. Ne4 {[%clk 0:01:57]}  Rc2 {[%clk 0:01:59]} 24. Rab1 {[%clk 0:01:57]}  R2c7 {[%clk 0:01:52]} 25. Qa3 {[%clk 0:01:45]}  Bf8 {[%clk 0:01:19]} 26. Qxa7 {[%clk 0:01:39]}  Rc4 {[%clk 0:01:17]} 27. f3 {[%clk 0:01:34]}  h5 {[%clk 0:01:14]} 28. gxh5 {[%clk 0:01:27]}  f5 {[%clk 0:01:13]} 29. Ng3 {[%clk 0:01:27]}  Qh7 {[%clk 0:00:51]} 30. e4 {[%clk 0:00:54]}  f4 {[%clk 0:00:51]} 31. Nf5 {[%clk 0:00:54]}  Qxh5 {[%clk 0:00:51]} 32. Rf2 {[%clk 0:00:34]}  g4 {[%clk 0:00:38]} 33. fxg4 {[%clk 0:00:32]}  Qxg4 {[%clk 0:00:39]} 34. Re1 {[%clk 0:00:30]}  Rc2 {[%clk 0:00:32]} 35. Ref1 {[%clk 0:00:30]}  R8c4 {[%clk 0:00:14]} 36. Qb8 {[%clk 0:00:20]}  Rc8 {[%clk 0:00:07]} 37. Qa7 {[%clk 0:00:21]}  R8c4 {[%clk 0:00:06]} 38. Qa8 {[%clk 0:00:21]}  Rc8 {[%clk 0:00:06]} 39. Qa4 {[%clk 0:00:21]}  Rxf2 {[%clk 0:00:04]} 40. Rxf2 {[%clk 0:00:19]}  Rc1+ {[%clk 0:00:04]} 41. Rf1 {[%clk 0:00:19]}  Rc7 {[%clk 0:00:04]} 42. Qe8 {[%clk 0:00:18]}  Qg8 {[%clk 0:00:04]} 43. Qe6 {[%clk 0:00:17]}  Qg5 {[%clk 0:00:03]} 44. Qe8 {[%clk 0:00:16]}  Qg8 {[%clk 0:00:03]} 45. Rf3 {[%clk 0:00:16]}  Rc1+ {[%clk 0:00:03]} 46. Kh2 {[%clk 0:00:16]}  Bg7 {[%clk 0:00:02]} 47. Rh3+ {[%clk 0:00:16]} 1-0


[Site "https://www.chess.com"]

[Event "Titled Tuesday Blitz December 06 Late 2022"]
[White "Korchmar, Vasiliy"]
[Black "Petrovic, Aleksa"]
[WhiteFideId "24131750"]
[BlackFideId "967629"]
[WhiteElo "2370"]
[BlackElo "2230"]
[Result "1-0"]
[Round "03"]
[TimeControl "180+1"]
[Date "2022.12.07"]
[WhiteClock "0:02:45"]
[BlackClock "0:00:36"]

1. e4 {[%clk 0:02:56]}  c6 {[%clk 0:02:58]} 2. d4 {[%clk 0:02:56]}  d5 {[%clk 0:02:58]} 3. e5 {[%clk 0:02:57]}  c5 {[%clk 0:02:59]} 4. dxc5 {[%clk 0:02:57]}  e6 {[%clk 0:02:59]} 5. Nf3 {[%clk 0:02:58]}  Bxc5 {[%clk 0:02:58]} 6. Bd3 {[%clk 0:02:59]}  Ne7 {[%clk 0:02:57]} 7. O-O {[%clk 0:03:00]}  O-O {[%clk 0:02:57]} 8. Ng5 {[%clk 0:02:59]}  h6 {[%clk 0:02:31]} 9. Qh5 {[%clk 0:02:59]}  Ng6 {[%clk 0:01:54]} 10. Nxf7 {[%clk 0:02:55]}  Rxf7 {[%clk 0:01:46]} 11. Qxg6 {[%clk 0:02:55]}  Nc6 {[%clk 0:01:37]} 12. Bxh6 {[%clk 0:02:55]}  Qh4 {[%clk 0:00:36]} 13. Qh7+ {[%clk 0:02:45]}  Kf8 {[%clk 0:00:36]} 14. Bxg7+ {[%clk 0:02:45]} 1-0


[Site "https://www.chess.com"]

[Event "Titled Tuesday Blitz December 06 Late 2022"]
[White "Korkmaz, Necmettin"]
[Black "Polster, Christian"]
[WhiteFideId "6303285"]
[BlackFideId "12965081"]
[WhiteElo "2094"]
[BlackElo "2195"]
[Result "1/2-1/2"]
[Round "03"]
[TimeControl "180+1"]
[Date "2022.12.07"]
[WhiteClock "0:00:20"]
[BlackClock "0:00:05"]

1. e4 {[%clk 0:03:00]}  c5 {[%clk 0:02:58]} 2. Nc3 {[%clk 0:02:57]}  Nc6 {[%clk 0:02:56]} 3. f4 {[%clk 0:02:57]}  e6 {[%clk 0:02:55]} 4. Nf3 {[%clk 0:02:56]}  d5 {[%clk 0:02:53]} 5. Bb5 {[%clk 0:02:50]}  Ne7 {[%clk 0:02:47]} 6. exd5 {[%clk 0:02:47]}  exd5 {[%clk 0:02:41]} 7. Qe2 {[%clk 0:02:42]}  Bg4 {[%clk 0:02:25]} 8. O-O {[%clk 0:02:36]}  Qb6 {[%clk 0:02:18]} 9. Nxd5 {[%clk 0:02:28]}  Qd8 {[%clk 0:01:43]} 10. Nxe7 {[%clk 0:02:21]}  Bxe7 {[%clk 0:01:43]} 11. Re1 {[%clk 0:02:20]}  Bxf3 {[%clk 0:01:39]} 12. Qxf3 {[%clk 0:02:18]}  O-O {[%clk 0:01:37]} 13. Bxc6 {[%clk 0:02:18]}  bxc6 {[%clk 0:01:38]} 14. Qxc6 {[%clk 0:02:18]}  Rc8 {[%clk 0:01:34]} 15. Qe4 {[%clk 0:02:14]}  Bf6 {[%clk 0:01:24]} 16. d3 {[%clk 0:02:07]}  Qd7 {[%clk 0:01:20]} 17. Qc4 {[%clk 0:02:00]}  Bd4+ {[%clk 0:01:12]} 18. Kf1 {[%clk 0:01:56]}  Rfe8 {[%clk 0:00:58]} 19. Bd2 {[%clk 0:01:20]}  Bxb2 {[%clk 0:00:19]} 20. Rab1 {[%clk 0:01:18]}  Bd4 {[%clk 0:00:18]} 21. Bc3 {[%clk 0:00:52]}  Bxc3 {[%clk 0:00:17]} 22. Qxc3 {[%clk 0:00:51]}  Qg4 {[%clk 0:00:17]} 23. g3 {[%clk 0:00:46]}  Qf3+ {[%clk 0:00:16]} 24. Kg1 {[%clk 0:00:46]}  h5 {[%clk 0:00:15]} 25. Qd2 {[%clk 0:00:41]}  h4 {[%clk 0:00:14]} 26. Qg2 {[%clk 0:00:34]}  Qg4 {[%clk 0:00:12]} 27. Kf2 {[%clk 0:00:27]}  c4 {[%clk 0:00:10]} 28. d4 {[%clk 0:00:26]}  c3 {[%clk 0:00:09]} 29. Re4 {[%clk 0:00:20]}  Rxe4 {[%clk 0:00:05]} 30. Qxe4 {[%clk 0:00:20]}  Qh3 {[%clk 0:00:05]} 31. Re1 {[%clk 0:00:19]}  Qxh2+ {[%clk 0:00:05]} 32. Qg2 {[%clk 0:00:18]}  hxg3+ {[%clk 0:00:05]} 33. Kf3 {[%clk 0:00:18]}  Qxg2+ {[%clk 0:00:05]} 34. Kxg2 {[%clk 0:00:18]}  Rd8 {[%clk 0:00:05]} 35. Rd1 {[%clk 0:00:18]}  Rb8 {[%clk 0:00:05]} 36. Kxg3 {[%clk 0:00:19]}  Rb2 {[%clk 0:00:05]} 37. d5 {[%clk 0:00:18]}  Rxc2 {[%clk 0:00:05]} 38. Kf3 {[%clk 0:00:16]}  Rd2 {[%clk 0:00:06]} 39. Rxd2 {[%clk 0:00:16]}  cxd2 {[%clk 0:00:07]} 40. Ke2 {[%clk 0:00:17]}  Kf8 {[%clk 0:00:08]} 41. Kxd2 {[%clk 0:00:18]}  Ke7 {[%clk 0:00:09]} 42. Kd3 {[%clk 0:00:18]}  Kd6 {[%clk 0:00:09]} 43. Kd4 {[%clk 0:00:19]}  g6 {[%clk 0:00:10]} 44. Ke4 {[%clk 0:00:18]}  f6 {[%clk 0:00:10]} 45. Kd4 {[%clk 0:00:19]}  g5 {[%clk 0:00:10]} 46. fxg5 {[%clk 0:00:17]}  fxg5 {[%clk 0:00:11]} 47. Ke4 {[%clk 0:00:17]}  a5 {[%clk 0:00:10]} 48. a4 {[%clk 0:00:15]}  g4 {[%clk 0:00:09]} 49. Kf4 {[%clk 0:00:15]}  Kxd5 {[%clk 0:00:10]} 50. Kxg4 {[%clk 0:00:16]}  Kc4 {[%clk 0:00:10]} 51. Kf3 {[%clk 0:00:17]}  Kb4 {[%clk 0:00:11]} 52. Ke2 {[%clk 0:00:17]}  Kxa4 {[%clk 0:00:12]} 53. Kd1 {[%clk 0:00:18]}  Kb3 {[%clk 0:00:13]} 54. Kc1 {[%clk 0:00:19]}  Ka2 {[%clk 0:00:13]} 55. Kc2 {[%clk 0:00:19]}  a4 {[%clk 0:00:08]} 56. Kc1 {[%clk 0:00:19]}  a3 {[%clk 0:00:06]} 57. Kc2 {[%clk 0:00:20]}  Ka1 {[%clk 0:00:07]} 58. Kc1 {[%clk 0:00:20]}  a2 {[%clk 0:00:05]} 59. Kc2 {[%clk 0:00:20]} 1/2-1/2


[Site "https://www.chess.com"]

[Event "Titled Tuesday Blitz December 06 Late 2022"]
[White "Korobov, Anton"]
[Black "Putnam, Liam"]
[WhiteFideId "14105730"]
[BlackFideId "30938279"]
[WhiteElo "2635"]
[BlackElo "2082"]
[Result "1-0"]
[Round "03"]
[TimeControl "180+1"]
[Date "2022.12.06"]
[WhiteClock "0:00:51"]
[BlackClock "0:00:22"]

1. d4 {[%clk 0:02:54]}  Nf6 {[%clk 0:02:58]} 2. c4 {[%clk 0:02:54]}  g6 {[%clk 0:02:57]} 3. Nc3 {[%clk 0:02:54]}  d5 {[%clk 0:02:58]} 4. cxd5 {[%clk 0:02:54]}  Nxd5 {[%clk 0:02:59]} 5. e4 {[%clk 0:02:55]}  Nxc3 {[%clk 0:02:58]} 6. bxc3 {[%clk 0:02:55]}  Bg7 {[%clk 0:02:59]} 7. Bc4 {[%clk 0:02:56]}  c5 {[%clk 0:02:54]} 8. Ne2 {[%clk 0:02:56]}  Nc6 {[%clk 0:02:54]} 9. Be3 {[%clk 0:02:56]}  O-O {[%clk 0:02:54]} 10. O-O {[%clk 0:02:56]}  b6 {[%clk 0:02:52]} 11. Rc1 {[%clk 0:02:54]}  Qc7 {[%clk 0:02:51]} 12. h4 {[%clk 0:02:52]}  Bb7 {[%clk 0:02:39]} 13. h5 {[%clk 0:02:52]}  Rfd8 {[%clk 0:02:34]} 14. hxg6 {[%clk 0:02:38]}  hxg6 {[%clk 0:02:35]} 15. Nf4 {[%clk 0:02:37]}  e6 {[%clk 0:02:15]} 16. Nxe6 {[%clk 0:02:27]}  fxe6 {[%clk 0:02:11]} 17. Bxe6+ {[%clk 0:02:28]}  Kf8 {[%clk 0:01:46]} 18. Qf3+ {[%clk 0:02:03]}  Ke8 {[%clk 0:01:46]} 19. Bf4 {[%clk 0:01:58]}  Qe7 {[%clk 0:01:44]} 20. d5 {[%clk 0:01:58]}  Ne5 {[%clk 0:01:34]} 21. Qg3 {[%clk 0:01:52]}  Nf7 {[%clk 0:01:21]} 22. Qxg6 {[%clk 0:01:25]}  Qf6 {[%clk 0:01:20]} 23. Qg4 {[%clk 0:01:18]}  Kf8 {[%clk 0:00:55]} 24. Rfe1 {[%clk 0:01:05]}  Ne5 {[%clk 0:00:41]} 25. Bxe5 {[%clk 0:01:00]}  Qxe5 {[%clk 0:00:42]} 26. f4 {[%clk 0:00:58]}  Qf6 {[%clk 0:00:35]} 27. e5 {[%clk 0:00:58]}  Qh6 {[%clk 0:00:33]} 28. Qf5+ {[%clk 0:00:52]}  Bf6 {[%clk 0:00:28]} 29. exf6 {[%clk 0:00:52]}  Rd6 {[%clk 0:00:22]} 30. Re3 {[%clk 0:00:51]} 1-0


[Site "https://www.chess.com"]

[Event "Titled Tuesday Blitz December 06 Late 2022"]
[White "Leenhouts, Koen"]
[Black "Cuevas Araya, Walter"]
[WhiteFideId "1008439"]
[BlackFideId "3405028"]
[WhiteElo "2409"]
[BlackElo "1957"]
[Result "1-0"]
[Round "03"]
[TimeControl "180+1"]
[Date "2022.12.07"]
[WhiteClock "0:00:12"]
[BlackClock "0:00:08"]

1. e4 {[%clk 0:03:00]}  e5 {[%clk 0:02:58]} 2. Nf3 {[%clk 0:02:59]}  Nf6 {[%clk 0:02:57]} 3. Nxe5 {[%clk 0:02:57]}  d6 {[%clk 0:02:56]} 4. Nf3 {[%clk 0:02:57]}  Nxe4 {[%clk 0:02:55]} 5. Nc3 {[%clk 0:02:51]}  Nxc3 {[%clk 0:02:54]} 6. dxc3 {[%clk 0:02:52]}  Be7 {[%clk 0:02:54]} 7. Be3 {[%clk 0:02:51]}  Nc6 {[%clk 0:02:54]} 8. Qd2 {[%clk 0:02:51]}  Be6 {[%clk 0:02:53]} 9. O-O-O {[%clk 0:02:50]}  Bxa2 {[%clk 0:02:53]} 10. c4 {[%clk 0:02:39]}  a5 {[%clk 0:02:46]} 11. Bd3 {[%clk 0:02:35]}  a4 {[%clk 0:02:45]} 12. Rhe1 {[%clk 0:02:33]}  O-O {[%clk 0:02:40]} 13. h4 {[%clk 0:02:09]}  a3 {[%clk 0:02:38]} 14. b3 {[%clk 0:02:07]}  Bf6 {[%clk 0:02:30]} 15. Qe2 {[%clk 0:01:40]}  Nb4 {[%clk 0:02:01]} 16. Ng5 {[%clk 0:01:35]}  g6 {[%clk 0:01:52]} 17. Qg4 {[%clk 0:01:21]}  Nxd3+ {[%clk 0:01:50]} 18. Rxd3 {[%clk 0:01:18]}  Bb2+ {[%clk 0:01:42]} 19. Kd2 {[%clk 0:01:17]}  f5 {[%clk 0:01:41]} 20. Qf3 {[%clk 0:01:13]}  Qf6 {[%clk 0:01:37]} 21. Qd5+ {[%clk 0:00:58]}  Kh8 {[%clk 0:01:34]} 22. Bd4 {[%clk 0:00:58]}  Bxd4 {[%clk 0:01:33]} 23. Qxd4 {[%clk 0:00:59]}  Qxd4 {[%clk 0:01:31]} 24. Rxd4 {[%clk 0:01:00]}  Rfe8 {[%clk 0:01:28]} 25. Ra1 {[%clk 0:00:48]}  Bxb3 {[%clk 0:01:20]} 26. cxb3 {[%clk 0:00:46]}  a2 {[%clk 0:01:20]} 27. Rd3 {[%clk 0:00:44]}  Kg7 {[%clk 0:01:13]} 28. Nf3 {[%clk 0:00:34]}  Re4 {[%clk 0:01:12]} 29. Re3 {[%clk 0:00:31]}  Rg4 {[%clk 0:01:09]} 30. g3 {[%clk 0:00:29]}  Kf8 {[%clk 0:01:09]} 31. Kd3 {[%clk 0:00:22]}  c6 {[%clk 0:01:02]} 32. Nh2 {[%clk 0:00:22]}  Re4 {[%clk 0:01:00]} 33. Rxe4 {[%clk 0:00:22]}  fxe4+ {[%clk 0:01:00]} 34. Kxe4 {[%clk 0:00:23]}  d5+ {[%clk 0:00:56]} 35. cxd5 {[%clk 0:00:22]}  cxd5+ {[%clk 0:00:57]} 36. Kxd5 {[%clk 0:00:23]}  Ra3 {[%clk 0:00:57]} 37. Kc4 {[%clk 0:00:22]}  Ra6 {[%clk 0:00:54]} 38. Nf1 {[%clk 0:00:20]}  Ke7 {[%clk 0:00:54]} 39. Ne3 {[%clk 0:00:19]}  Ke6 {[%clk 0:00:55]} 40. Kc3 {[%clk 0:00:18]}  Ke5 {[%clk 0:00:55]} 41. Kb2 {[%clk 0:00:15]}  Ke4 {[%clk 0:00:55]} 42. Rxa2 {[%clk 0:00:15]}  Rxa2+ {[%clk 0:00:55]} 43. Kxa2 {[%clk 0:00:16]}  Kf3 {[%clk 0:00:56]} 44. Nd1 {[%clk 0:00:12]}  Ke2 {[%clk 0:00:56]} 45. g4 {[%clk 0:00:11]}  Kxd1 {[%clk 0:00:55]} 46. f4 {[%clk 0:00:11]}  Kd2 {[%clk 0:00:52]} 47. f5 {[%clk 0:00:12]}  h5 {[%clk 0:00:48]} 48. fxg6 {[%clk 0:00:12]}  hxg4 {[%clk 0:00:49]} 49. g7 {[%clk 0:00:13]}  g3 {[%clk 0:00:49]} 50. g8=Q {[%clk 0:00:13]}  g2 {[%clk 0:00:50]} 51. Qxg2+ {[%clk 0:00:13]}  Kc3 {[%clk 0:00:51]} 52. h5 {[%clk 0:00:13]}  b5 {[%clk 0:00:52]} 53. h6 {[%clk 0:00:13]}  b4 {[%clk 0:00:53]} 54. h7 {[%clk 0:00:14]}  Kd4 {[%clk 0:00:52]} 55. h8=Q+ {[%clk 0:00:14]}  Kc5 {[%clk 0:00:53]} 56. Qe5+ {[%clk 0:00:13]}  Kb6 {[%clk 0:00:52]} 57. Qg6+ {[%clk 0:00:13]}  Kb7 {[%clk 0:00:08]} 58. Qeg7+ {[%clk 0:00:14]}  Kc8 {[%clk 0:00:08]} 59. Qe8# {[%clk 0:00:12]} 1-0


[Site "https://www.chess.com"]

[Event "Titled Tuesday Blitz December 06 Late 2022"]
[White "Mahdavi, Reza"]
[Black "Dimitrov, Atanas"]
[WhiteFideId "12595926"]
[BlackFideId "2901315"]
[WhiteElo "2242"]
[BlackElo "2597"]
[Result "0-1"]
[Round "03"]
[TimeControl "180+1"]
[Date "2022.12.06"]
[WhiteClock "0:00:43"]
[BlackClock "0:01:21"]

1. d4 {[%clk 0:03:00]}  Nf6 {[%clk 0:02:59]} 2. c4 {[%clk 0:02:57]}  g6 {[%clk 0:02:58]} 3. Nc3 {[%clk 0:02:55]}  d5 {[%clk 0:02:58]} 4. Nf3 {[%clk 0:02:46]}  Bg7 {[%clk 0:02:57]} 5. Qb3 {[%clk 0:02:47]}  dxc4 {[%clk 0:02:56]} 6. Qxc4 {[%clk 0:02:48]}  O-O {[%clk 0:02:56]} 7. e4 {[%clk 0:02:46]}  a6 {[%clk 0:02:55]} 8. Be2 {[%clk 0:02:40]}  b5 {[%clk 0:02:54]} 9. Qb3 {[%clk 0:02:40]}  c5 {[%clk 0:02:55]} 10. dxc5 {[%clk 0:02:40]}  Be6 {[%clk 0:02:42]} 11. Qc2 {[%clk 0:02:38]}  Nc6 {[%clk 0:02:42]} 12. O-O {[%clk 0:02:31]}  Rc8 {[%clk 0:02:37]} 13. Be3 {[%clk 0:02:27]}  Ng4 {[%clk 0:02:36]} 14. Bf4 {[%clk 0:02:06]}  Nb4 {[%clk 0:02:08]} 15. Qb1 {[%clk 0:02:04]}  Rxc5 {[%clk 0:02:02]} 16. a3 {[%clk 0:02:03]}  Nc6 {[%clk 0:02:00]} 17. h3 {[%clk 0:02:03]}  Nge5 {[%clk 0:01:53]} 18. Ng5 {[%clk 0:02:03]}  Bc4 {[%clk 0:01:52]} 19. Rd1 {[%clk 0:01:51]}  Qc8 {[%clk 0:01:40]} 20. Bxc4 {[%clk 0:01:46]}  Nxc4 {[%clk 0:01:33]} 21. Rc1 {[%clk 0:01:40]}  Nd4 {[%clk 0:01:28]} 22. b3 {[%clk 0:01:34]}  Nxa3 {[%clk 0:01:24]} 23. Rxa3 {[%clk 0:01:12]}  Rxc3 {[%clk 0:01:23]} 24. Rxc3 {[%clk 0:01:12]}  Qxc3 {[%clk 0:01:24]} 25. Be3 {[%clk 0:01:10]}  Nc2 {[%clk 0:01:21]} 26. Ra5 {[%clk 0:00:43]} 0-1


[Site "https://www.chess.com"]

[Event "Titled Tuesday Blitz December 06 Late 2022"]
[White "Maksimovic, Bojan"]
[Black "Abasov, Nijat"]
[WhiteFideId "14408120"]
[BlackFideId "13402960"]
[WhiteElo "2462"]
[BlackElo "2546"]
[Result "0-1"]
[Round "03"]
[TimeControl "180+1"]
[Date "2022.12.06"]
[WhiteClock "0:00:02"]
[BlackClock "0:01:07"]

1. d4 {[%clk 0:03:00]}  Nf6 {[%clk 0:02:59]} 2. c4 {[%clk 0:02:59]}  e6 {[%clk 0:03:00]} 3. Nf3 {[%clk 0:02:59]}  b6 {[%clk 0:03:00]} 4. a3 {[%clk 0:02:50]}  Bb7 {[%clk 0:03:01]} 5. Nc3 {[%clk 0:02:44]}  d5 {[%clk 0:03:02]} 6. cxd5 {[%clk 0:02:40]}  Nxd5 {[%clk 0:03:03]} 7. Bg5 {[%clk 0:02:27]}  Be7 {[%clk 0:03:01]} 8. Bxe7 {[%clk 0:02:25]}  Qxe7 {[%clk 0:02:59]} 9. e3 {[%clk 0:02:19]}  Nxc3 {[%clk 0:02:57]} 10. bxc3 {[%clk 0:02:20]}  O-O {[%clk 0:02:58]} 11. Bd3 {[%clk 0:02:18]}  c5 {[%clk 0:02:59]} 12. O-O {[%clk 0:02:18]}  Rd8 {[%clk 0:02:58]} 13. Qe2 {[%clk 0:02:17]}  Nc6 {[%clk 0:02:56]} 14. Rfd1 {[%clk 0:02:15]}  Rac8 {[%clk 0:02:51]} 15. Rab1 {[%clk 0:02:07]}  cxd4 {[%clk 0:02:49]} 16. cxd4 {[%clk 0:02:05]}  Qxa3 {[%clk 0:02:48]} 17. Ng5 {[%clk 0:01:58]}  h6 {[%clk 0:02:47]} 18. Ne4 {[%clk 0:01:47]}  Qe7 {[%clk 0:02:32]} 19. Ng3 {[%clk 0:01:47]}  Nb4 {[%clk 0:02:22]} 20. Bc4 {[%clk 0:01:29]}  Nd5 {[%clk 0:02:20]} 21. Rdc1 {[%clk 0:01:27]}  Rc7 {[%clk 0:02:17]} 22. Bxd5 {[%clk 0:01:11]}  Bxd5 {[%clk 0:02:18]} 23. h3 {[%clk 0:01:07]}  Rdc8 {[%clk 0:02:17]} 24. Rxc7 {[%clk 0:01:06]}  Rxc7 {[%clk 0:02:16]} 25. e4 {[%clk 0:01:06]}  Bc4 {[%clk 0:02:14]} 26. Qg4 {[%clk 0:01:04]}  b5 {[%clk 0:02:06]} 27. h4 {[%clk 0:01:02]}  Rd7 {[%clk 0:01:30]} 28. Nh5 {[%clk 0:00:55]}  f5 {[%clk 0:01:27]} 29. exf5 {[%clk 0:00:51]}  exf5 {[%clk 0:01:28]} 30. Qxf5 {[%clk 0:00:20]}  Rxd4 {[%clk 0:01:27]} 31. Ng3 {[%clk 0:00:17]}  Bd3 {[%clk 0:01:19]} 32. Qc8+ {[%clk 0:00:17]}  Rd8 {[%clk 0:01:18]} 33. Qc1 {[%clk 0:00:10]}  Bxb1 {[%clk 0:01:17]} 34. Qxb1 {[%clk 0:00:11]}  Qxh4 {[%clk 0:01:14]} 35. Qxb5 {[%clk 0:00:08]}  Rd1+ {[%clk 0:01:09]} 36. Nf1 {[%clk 0:00:09]}  Qd4 {[%clk 0:01:09]} 37. Qb8+ {[%clk 0:00:07]}  Kh7 {[%clk 0:01:08]} 38. Qb3 {[%clk 0:00:06]}  Qd3 {[%clk 0:01:08]} 39. Qxd3+ {[%clk 0:00:01]}  Rxd3 {[%clk 0:01:09]} 40. Ne3 {[%clk 0:00:01]}  Rxe3 {[%clk 0:01:08]} 41. fxe3 {[%clk 0:00:01]}  a5 {[%clk 0:01:09]} 42. Kf2 {[%clk 0:00:02]}  a4 {[%clk 0:01:07]} 43. Ke2 {[%clk 0:00:02]}  a3 {[%clk 0:01:07]} 0-1


[Site "https://www.chess.com"]

[Event "Titled Tuesday Blitz December 06 Late 2022"]
[White "Mazurkiewicz, Michal"]
[Black "Kim, Sergey"]
[WhiteFideId "1124943"]
[BlackFideId "13700570"]
[WhiteElo "2081"]
[BlackElo "2618"]
[Result "1-0"]
[Round "03"]
[TimeControl "180+1"]
[Date "2022.12.07"]
[WhiteClock "0:02:29"]
[BlackClock "0:02:24"]

1. e4 {[%clk 0:03:00]}  e5 {[%clk 0:02:59]} 2. Nf3 {[%clk 0:03:00]}  Nc6 {[%clk 0:03:00]} 3. d3 {[%clk 0:03:00]}  g6 {[%clk 0:02:57]} 4. g3 {[%clk 0:03:00]}  Bg7 {[%clk 0:02:57]} 5. Bg2 {[%clk 0:03:01]}  Nge7 {[%clk 0:02:58]} 6. O-O {[%clk 0:03:01]}  O-O {[%clk 0:02:58]} 7. c3 {[%clk 0:03:01]}  d6 {[%clk 0:02:57]} 8. b4 {[%clk 0:03:01]}  a6 {[%clk 0:02:56]} 9. a3 {[%clk 0:03:01]}  h6 {[%clk 0:02:56]} 10. Nbd2 {[%clk 0:03:02]}  f5 {[%clk 0:02:55]} 11. Bb2 {[%clk 0:03:00]}  f4 {[%clk 0:02:55]} 12. d4 {[%clk 0:03:00]}  g5 {[%clk 0:02:38]} 13. h3 {[%clk 0:02:54]}  g4 {[%clk 0:02:36]} 14. hxg4 {[%clk 0:02:54]}  Bxg4 {[%clk 0:02:36]} 15. a4 {[%clk 0:02:50]}  exd4 {[%clk 0:02:31]} 16. cxd4 {[%clk 0:02:45]}  Nxd4 {[%clk 0:02:29]} 17. Bxd4 {[%clk 0:02:42]}  Bxd4 {[%clk 0:02:29]} 18. Qb3+ {[%clk 0:02:43]}  Kh7 {[%clk 0:02:28]} 19. Nxd4 {[%clk 0:02:42]}  Ng6 {[%clk 0:02:27]} 20. Ne6 {[%clk 0:02:40]}  Bxe6 {[%clk 0:02:26]} 21. Qxe6 {[%clk 0:02:41]}  Qg5 {[%clk 0:02:25]} 22. Nf3 {[%clk 0:02:34]}  Qh5 {[%clk 0:02:24]} 23. g4 {[%clk 0:02:29]} 1-0


[Site "https://www.chess.com"]

[Event "Titled Tuesday Blitz December 06 Late 2022"]
[White "Mikaelyan, Arman"]
[Black "Xiong, Jeffery"]
[WhiteFideId "13304852"]
[BlackFideId "2047640"]
[WhiteElo "2456"]
[BlackElo "2726"]
[Result "0-1"]
[Round "03"]
[TimeControl "180+1"]
[Date "2022.12.06"]
[WhiteClock "0:00:04"]
[BlackClock "0:00:19"]

1. d4 {[%clk 0:02:53]}  d5 {[%clk 0:03:00]} 2. c4 {[%clk 0:02:53]}  dxc4 {[%clk 0:03:01]} 3. Nf3 {[%clk 0:02:52]}  a6 {[%clk 0:02:59]} 4. e3 {[%clk 0:02:48]}  Nf6 {[%clk 0:02:59]} 5. Bxc4 {[%clk 0:02:48]}  e6 {[%clk 0:03:00]} 6. O-O {[%clk 0:02:48]}  c5 {[%clk 0:02:58]} 7. b3 {[%clk 0:02:48]}  cxd4 {[%clk 0:02:57]} 8. Nxd4 {[%clk 0:02:48]}  Bd6 {[%clk 0:02:57]} 9. Bb2 {[%clk 0:02:43]}  O-O {[%clk 0:02:58]} 10. Nd2 {[%clk 0:02:40]}  e5 {[%clk 0:02:58]} 11. N4f3 {[%clk 0:02:33]}  Qe7 {[%clk 0:02:58]} 12. Ng5 {[%clk 0:02:26]}  b5 {[%clk 0:02:39]} 13. Nde4 {[%clk 0:02:18]}  Nxe4 {[%clk 0:02:31]} 14. Nxe4 {[%clk 0:02:19]}  Rd8 {[%clk 0:02:22]} 15. Bd5 {[%clk 0:02:05]}  Ra7 {[%clk 0:02:22]} 16. Qf3 {[%clk 0:01:48]}  Bb4 {[%clk 0:02:01]} 17. Rad1 {[%clk 0:01:14]}  Rad7 {[%clk 0:02:00]} 18. Ng3 {[%clk 0:01:11]}  Rd6 {[%clk 0:01:23]} 19. e4 {[%clk 0:01:02]}  g6 {[%clk 0:01:10]} 20. a3 {[%clk 0:00:54]}  Rf6 {[%clk 0:01:03]} 21. Qe2 {[%clk 0:00:47]}  Bc5 {[%clk 0:01:02]} 22. b4 {[%clk 0:00:46]}  Bb6 {[%clk 0:01:02]} 23. Kh1 {[%clk 0:00:44]}  h5 {[%clk 0:00:57]} 24. f4 {[%clk 0:00:40]}  Bg4 {[%clk 0:00:52]} 25. fxe5 {[%clk 0:00:29]}  Rxf1+ {[%clk 0:00:40]} 26. Qxf1 {[%clk 0:00:30]}  Bxd1 {[%clk 0:00:40]} 27. Qxd1 {[%clk 0:00:27]}  Nd7 {[%clk 0:00:30]} 28. Nxh5 {[%clk 0:00:19]}  Nxe5 {[%clk 0:00:27]} 29. Nf4 {[%clk 0:00:18]}  Be3 {[%clk 0:00:19]} 30. Ne2 {[%clk 0:00:08]}  Ng4 {[%clk 0:00:18]} 31. Qf1 {[%clk 0:00:04]}  Nf2+ {[%clk 0:00:18]} 32. Kg1 {[%clk 0:00:04]}  Nxe4+ {[%clk 0:00:18]} 33. Kh1 {[%clk 0:00:04]}  Nf2+ {[%clk 0:00:19]} 34. Kg1 {[%clk 0:00:04]}  Rxd5 {[%clk 0:00:19]} 0-1


[Site "https://www.chess.com"]